Cogmind - Beta 10.2 @@@ ROGUE MODE // 2021.01.03 @ 20:01:30 Player: aperiodic Result: Destroyed by as-24255 with Assembled Rifle Performance ------------- Evolutions (0) 0 Regions Visited (2) 400 Robots Destroyed (15) 75 Value Destroyed (331) 331 Prototype IDs (6) 120 Alien Tech Used (0) 0 Bonus (-50) -50 TOTAL SCORE: 876 Bonus ------- Friendly Fire -50 Cogmind --------- Core Integrity 0/250 Matter 91/300 Energy 99/100 System Corruption 0% Temperature Cool (0) Movement Core (50) Location -10/Mines Parts ------- > --- POWER (1) -------- (None) > --- PROPULSION (2) --- (None) > --- UTILITY (2) ------ (None) > --- WEAPON (2) ------- (None) > --- INVENTORY (4) ---- Medium Storage Unit High-capacity Battery (400) Hacking Suite Mini Grenade Launcher Peak State ------------ > --- POWER ------------ Light Nuclear Core > --- PROPULSION ------- Wheel Wheel > --- UTILITY ---------- Medium Storage Unit Large Storage Unit > --- WEAPON ----------- Autogun Autogun > --- INVENTORY -------- Ion Engine Light Treads Light Treads Medium Storage Unit Large Storage Unit High-capacity Battery Assault Rifle Autogun Autogun Mini Grenade Launcher Mini Grenade Launcher Mini Grenade Launcher Mini Grenade Launcher Mining Laser [Rating: 13] Favorites ----------- Power Light Nuclear Core Engine Ion Engine Power Core Light Nuclear Core Propulsion Wheel Treads Light Treads Wheel Wheel Utility Small Storage Unit Storage Small Storage Unit Weapon Autogun Ballistic Gun Autogun Launcher Mini Grenade Launcher Special Weapon Mining Laser Build | -11 -10 -10 ------- Run | Scr Mat Min Slots Evolved . | . . . Power . | . . . Propulsion . | . . . Utility . | . . . Weapon . | . . . Parts Attached 26 | 6 19 1 Power 2 | 1 1 . Engine 1 | 1 . . Core 1 | . 1 . Reactor . | . . . Propulsion 10 | 2 8 . Treads 4 | . 4 . Leg . | . . . Wheel 6 | 2 4 . Hover . | . . . Flight . | . . . Utility 5 | 1 4 . Device . | . . . Storage 5 | 1 4 . Processor . | . . . Hackware . | . . . Protection . | . . . Artifact . | . . . Weapon 9 | 2 6 1 Energy Gun . | . . . Energy Cannon . | . . . Ballistic Gun 6 | 2 4 . Ballistic Cannon . | . . . Launcher 1 | . . 1 Special Weapon 2 | . 2 . Impact Weapon . | . . . Slashing Weapon . | . . . Piercing Weapon . | . . . Special Melee Weapon . | . . . Unidentified Prototypes . | . . . Parts Lost 3 | . . 3 Power 1 | . . 1 Propulsion 2 | . . 2 Utility . | . . . Weapon . | . . . Highest Loss Streak 3 | . . 3 Average Slot Usage (%) 92 | . 97 50 Engine 1 | . 1 . Core 12 | . 12 6 Treads 14 | . 15 . Wheel 11 | . 12 6 Storage 24 | . 25 18 Ballistic Gun 25 | . 27 9 Naked Turns 32 | . . 32 Heaviest Build 35 | 12 35 35 Greatest Support 40 | 20 40 20 Greatest Overweight (x) 10 | . 1 10 Average Overweight (x) . | . . . Largest Inventory Capacity 14 | 6 14 14 Average Capacity 9 | 5 9 10 Most Carried 14 | 6 14 14 Average Carried 8 | 4 8 10 Final Capacity 14 | 6 14 4 Final Carried 14 | 6 14 4 Class Distribution -------------------- 100% | Mutant Dominant Class ---------------- Mutant | -10/Materials Mutant | -10/Mines Resources | -11 -10 -10 ----------- Run | Scr Mat Min Matter Collected 726 | 300 317 109 Remotely . | . . . Salvage Created 557 | 111 421 25 Parts 36 | 10 22 4 Haulers Intercepted . | . . . Recyclers Shooed 2 | . 2 . Parts Field Recycled . | . . . Retrieved Matter . | . . . Parts Self-Destructed . | . . . Prevented . | . . . Kills | -11 -10 -10 ------- Run | Scr Mat Min Combat Hostiles Destroyed 16 | . 7 9 Guns 7 | . 7 . AOE 9 | . . 9 Classes Destroyed 7 | 2 3 2 Worker 2 | . 1 1 Tunneler 2 | 2 . . Recycler 2 | 1 1 . Operator 1 | . . 1 Watcher 1 | . 1 . Grunt 7 | . 7 . Assembled 9 | . . 9 Best Kill Streak 10 | 2 2 10 Combat Bots Only 9 | . 2 9 Max Kills in Single Turn 2 | 1 1 2 Gunslinging . | . . . Exploded 2 | . . 2 Melee . | . . . Uniques/NPCs Destroyed . | . . . Combat | -11 -10 -10 -------- Run | Scr Mat Min Damage Taken 758 | . 323 435 Core 256 | . 64 192 Absorbed by Shields . | . . . Core Remaining (%) 100 | 100 . . Volleys Fired 72 | 10 47 15 Largest 2 | 2 2 1 Hottest 100 | 40 100 30 Shots Fired 125 | 20 90 15 Gun 113 | 20 86 7 Cannon . | . . . Launcher 8 | . . 8 Special 4 | . 4 . Kinetic 113 | 20 86 7 Thermal 4 | . 4 . Explosive 8 | . . 8 Electromagnetic . | . . . Robot Hit Streak 8 | 6 8 4 Robot Miss Streak 5 | 1 3 5 Penetration Max . | . . . Secondary Targets . | . . . Shots Hit Robots 74 | 13 55 6 Core Hits 48 | 4 18 26 Critical Hits . | . . . Critical Kills . | . . . Critical Parts Destroyed . | . . . Melee Attacks . | . . . Impact . | . . . Slashing . | . . . Piercing . | . . . Sneak Attacks . | . . . Combat Hostiles . | . . . Follow-up Attacks . | . . . Damage Inflicted 1906 | 129 808 969 Guns 984 | 129 807 48 Cannons . | . . . Explosions 921 | . . 921 Melee . | . . . Ramming 1 | . 1 . Kinetic 984 | 129 807 48 Thermal . | . . . Explosive 921 | . . 921 Electromagnetic . | . . . Impact . | . . . Slashing . | . . . Piercing . | . . . Highest Corruption . | . . . Average Corruption . | . . . Corruption Purged . | . . . Overload Shots . | . . . Overflow Damage 55 | . . 55 Projectiles . | . . . Explosions 55 | . . 55 Melee . | . . . Knockbacks . | . . . Impact . | . . . Kinetic . | . . . Secondary . | . . . Self-Inflicted Damage 98 | . . 98 Shots 3 | . . 3 Rammed 1 | . 1 . Targets Rammed 1 | . 1 . Kicked . | . . . Crushed . | . . . Highest Temperature 70 | . 70 7 Average Temperature 21 | . 21 6 Received Heat Transfer 292 | . 192 100 Siege Activations . | . . . Robots Corrupted . | . . . Combat Hostiles . | . . . Parts Fried . | . . . Impact Corruptions . | . . . Robots Melted . | . . . Combat Hostiles . | . . . Parts Melted . | . . . Heat Transferred . | . . . Parts Sabotaged . | . . . Parts Stolen . | . . . Parts Stripped . | . . . Power Chain Reactions . | . . . Missiles Intercepted . | . . . Alert | -11 -10 -10 ------- Run | Scr Mat Min Peak Influence 242 | 15 242 15 Initial 9 | . 9 . Average 86 | 5 103 3 Maximum Alert Level 1 | . 1 . Low Security (%) 87 | 100 84 100 Level 1 12 | . 15 . Level 2 . | . . . Level 3 . | . . . Level 4 . | . . . Level 5 . | . . . High Security . | . . . Max Security . | . . . Squads Dispatched . | . . . Investigation . | . . . Extermination . | . . . Reinforcement . | . . . Assault . | . . . Garrison . | . . . Intercept . | . . . Construction Impeded . | . . . Haulers Reinforced . | . . . Stealth | -11 -10 -10 --------- Run | Scr Mat Min Distress Signals 1 | . 1 . Communications Jammed . | . . . Distress Signals . | . . . Times Spotted 32 | . 16 16 Peak Tracking Total 8 | . 3 8 Tactical Retreats 3 | . 1 2 Traps | -11 -10 -10 ------- Run | Scr Mat Min Traps Triggered . | . . . Indirectly . | . . . Trap Hack Attempts . | . . . Triggered . | . . . Disarmed . | . . . Reprogrammed . | . . . Reused . | . . . Traps Extracted . | . . . Installed . | . . . Triggered . | . . . Machines | -11 -10 -10 ---------- Run | Scr Mat Min Machines Disabled 1 | . . 1 Max in Single Turn 1 | . . 1 Machines Sabotaged . | . . . Garrisons Compromised . | . . . Overloaded Fab Kills . | . . . Fab Network Shutdowns . | . . . Hacking | -11 -10 -10 --------- Run | Scr Mat Min Machines Accessed 6 | . 6 . Terminals 6 | . 6 . Fabricators . | . . . Repair Stations . | . . . Recycling Units . | . . . Scanalyzers . | . . . Garrison Access . | . . . Total Hacks 19 | . 19 . Successful 13 | . 13 . Failed 6 | . 6 . Catastrophic 1 | . 1 . Database Lockouts . | . . . Manual 17 | . 17 . Terminals 19 | . 19 . Fabricators . | . . . Repair Stations . | . . . Recycling Units . | . . . Scanalyzers . | . . . Garrison Access . | . . . Terminal Hacks 5 | . 5 . Prototype ID Bank 3 | . 3 . Terminal Index 1 | . 1 . Hauler Manifests 1 | . 1 . Fabricator Hacks . | . . . Repair Station Hacks . | . . . Recycling Unit Hacks . | . . . Scanalyzer . | . . . Garrison Access Hacks . | . . . Unauthorized Hacks 8 | . 8 . Terminals 8 | . 8 . Track 4 | . 4 . Assimilate 2 | . 2 . Botnet 1 | . 1 . Operators 1 | . 1 . Fabricators . | . . . Repair Stations . | . . . Recycling Units . | . . . Scanalyzers . | . . . Garrison Access . | . . . Data Cores Recovered . | . . . Used . | . . . Hacking Detections 5 | . 5 . Full Trace Events . | . . . Feedback Events . | . . . Feedback Blocked . | . . . Robot Schematics Acquired . | . . . Robots Built . | . . . Matter . | . . . Time . | . . . Total Robot Build Rating . | . . . Part Schematics Acquired . | . . . Parts Built . | . . . Matter . | . . . Time . | . . . Total Part Build Rating . | . . . Parts Repaired . | . . . Time . | . . . Parts Recycled . | . . . Recycled Matter . | . . . Retrieved Matter . | . . . Retrieved Components . | . . . Parts Scanalyzed . | . . . Part Schematics Acquired . | . . . Parts Damaged . | . . . Bothacking | -11 -10 -10 ------------ Run | Scr Mat Min Used RIF Installer . | . . . Robots Hacked . | . . . Non-combat . | . . . Combat . | . . . Robot Hacks Applied . | . . . Relay Couplers Released . | . . . Robots Rewired . | . . . Allies Hacked . | . . . Hacks Repelled . | . . . Allies | -11 -10 -10 -------- Run | Scr Mat Min Total Allies 2 | . 2 . Largest Group 2 | . 2 2 Highest-Rated Group 20 | . 20 20 Highest-Rated Ally 10 | . 10 10 Total Orders . | . . . Ally Attacks . | . . . Total Damage . | . . . Kills . | . . . Allies Corrupted . | . . . Allies Melted . | . . . Intel | -11 -10 -10 ------- Run | Scr Mat Min Robot Analysis Total . | . . . Derelict Logs Recovered . | . . . Drone Launches . | . . . Drone Recoveries . | . . . Exploration | -11 -10 -10 ------------- Run | Scr Mat Min Turns Passed 1034 | 83 857 94 Spaces Moved 679 | 50 551 78 Core 77 | 12 . 65 Treads 210 | . 210 . Legs . | . . . Wheels 392 | 38 341 13 Hover . | . . . Flight . | . . . Fastest Speed 50 | 50 80 50 Average Speed 107 | 72 114 77 Slowest Speed 550 | 80 160 550 Overloaded Moves . | . . . Propulsion Burnouts . | . . . Robots Hopped . | . . . Cave-ins Triggered . | . . . Exploration Rate (%) 31 | 4 65 25 Regions Visited 2 Branch Regions 1 Pre-discovered Areas . | . . . Known Exits Taken . | . . . Unknown Exits Taken 2 | 1 1 . Scrap Searched . | . . . Spaces Dug 2 | . 2 . Terrain Destroyed 55 | . 2 53 Melee . | . . . Projectile 2 | . 2 . AOE 53 | . . 53 Terrain Rammed . | . . . Walls Destroyed . | . . . Machines Disabled . | . . . Actions | -11 -10 -10 --------- Run | Scr Mat Min Total 864 | 75 691 98 Wait 61 | 4 55 2 Move 677 | 49 550 78 Hop . | . . . Pick Up 19 | 6 12 1 Fast Attach 7 | 6 1 . Attach 1 | . 1 . Detach . | . . . Swap 18 | . 17 1 Drop 8 | . 7 1 Fire 72 | 10 47 15 Melee . | . . . Ram . | . . . Kick . | . . . Crush 1 | . 1 . Escape Stasis . | . . . Rewire . | . . . Trap . | . . . Miscellaneous . | . . . Route ------- -11/Scrapyard -10/Materials (discovered 2 exits: [*Mat] / [*Min]) -10/Mines History --------- Turn | Location | Event 4 | -11/Scrapyard | Discovered new exit (range 14) 84 | -11/Scrapyard | Entered Materials 314 | -10/Materials | Build established: Mutant 319 | -10/Materials | Discovered new exit (range 16) 463 | -10/Materials | Discovered new exit (range 16) 941 | -10/Materials | Entered Mines 941 | -10/Mines | Accompanied by 2 allies 942 | -10/Mines | Assembled infested the area 948 | -10/Mines | Received a Rocket Launcher from a helpful Derelict 993 | -10/Mines | Destroyed 9 combat bots 998 | -10/Mines | Core integrity fell below 50% 1003 | -10/Mines | Released all parts (4) 1015 | -10/Mines | Lost 3 parts (1p2n) 1018 | -10/Mines | Core integrity fell below 20% 1035 | -10/Mines | Destroyed by as-24255 with Assembled Rifle Last Messages --------------- 00974_ Destroyed Asb. Blade. 00976_ The unstable cave ceiling collapses. 00977_ K-01 Serf cleans the Laser Drill. 00981_ K-01 Serf collects debris. 00984_ Lgt. Nuclear Core destroyed. 00987_ Extracted 19 matter. 00988_ K-01 Serf collects debris. 00994_ Destroyed Asb. F-torch. 00994_ K-01 Serf collects debris. 00997_ K-01 Serf cleans the Laser Drill. 01001_ K-01 Serf collects debris. 01003_ Released Lrg. Storage Unit. 01003_ Released Med. Storage Unit. 01003_ Released Autogun. 01003_ Released Mni. Grenade Launcher. 01004_ K-01 Serf destroyed. 01012_ Acquired 42 matter. 01018_ Acquired 48 matter. 01023_ Dropped Lgt. Treads. 01023_ Acquired Hacking Suite. Map ----- +----------------------------------------------------+ | | | | | | | | | | | ?????????????????????????????????????????????????? | | ?????????????????????????????????#####???????????? | | ???????????????????????????????### ##??????????? | | ??????????????????????????????## ##?????????? | | ??????????????????????????????# ##????????? | | ?????????????????????????????## ##???????? | | ?????????????????????????????# ####????? | | ?????????????????????????????# ###??? | | ?????????????????????????????# ##?? | | ?????????????????????????????## ## #?? | | ??????????????????????????????# #### #?? | | ????????????????????????????#### #??## =* #?? | | ????????????????????????????# ##??##= ! #?? | | ????????????????????########## #???# [ ##?? | | ????????????????????# ][ ##???# ###??? | | ????????????????????# =!| #???# #????? | | ????????????????????# r*!![a ##???# #????? | | ????????????????????# """ ""!=]] #????# #????? | | ????????????????????# """ ""[= # ###??# #????? | | ????????????????????# """ " [ #### #????? | | ????????????????????# @ a # ##???? | | ????????????????????# """ """% a ] ##??? | | ????????????????????# """ """ # a ##?? | | ????????????????????# """ """ # * #?? | | ????????????????????# ## #?? | | ????????????????????# ### ##?? | | ????????????????????########## #### # ###??? | | ?????????????????????????????# #?# # ##????? | | ?????????????????????????????# #?# # #?????? | | ?????????????????????????????# #?## # ## #?????? | | ????????????????????????????## #?## ###?????? | | ???????????????????????????## ###%= #??????? | | ???????????????????????????# ## #??????? | | ???????????????????????????# < = #??????? | | ???????????????????????????# ## " " #??????? | | ???????????????????????????# ## """ #??????? | | ???????????????????????????# ## """ #??????? | | ???????????????????????????## ##T % #??????? | | ????????????????????????????########## ####??????? | | ?????????????????????????????????????# #?????????? | | ?????????????????????????????????????# #?????????? | | ?????????????????????????????????????? ?????????? | | ?????????????????????????????????????? ?????????? | | ?????????????????????????????????????? #?????????? | | ??????????????????????????????????????##?????????? | +----------------------------------------------------+ Best States ------------- Heat Dissipation 25 Energy Generation 14 Energy Capacity 250 Matter Stores 300 Matter Capacity 300 Sight Range 16 Terrain Scan Density 10 Evasion (%) 50 Recoil Reduction 2 Item Schematics ----------------- None Robot Schematics ------------------ None Fabricated ------------ Nothing Alien Tech Used ----------------- None Achievements -------------- None Challenges ------------ None Game ------ Seed AntigravWaveSource Manual? 0 Play Time 00:18:07 Cumulative 274.7 hours Start 2021.01.03 @ 19:46:28 End 2021.01.03 @ 20:01:30 Sessions 1 Manual Loads 0 Difficulty Rogue Special Mode None Game No. 101 Rogue 97 Adventurer 4 Explorer 0 Win Type - Total 4 Types 3/0/1/0/0/0/0/0/0 Lore% 67 Gallery% 76 Achievement% 61 Wizard Run 0 Options --------- ASCII 1 Keyboard 0 Movement Arrows Keybinds 0 Fullscreen 1 Font 18/SmallcapsGlow Map View 76x50 Tactical HUD 1 Map Filters NONE Filters NONE Steam 1 RUN: d4a530fd-f5fe-4af4-870b-4041806b9244